fUST/lending_fUST_20240228
["ID","MTS","AMOUNT","RATE_DAILY","PERIOD"]
[315582458,1709134242024,-439.76788492,0.00019178,2]
[315582459,1709134242033,-500.0,0.00019178,2]
[315582460,1709134242042,-292.53384056,0.00019178,2]
[315582461,1709134242051,-500.0,0.00019178,2]
[315582462,1709134242060,-500.0,0.00019178,2]
[315582463,1709134242069,-500.0,0.00019178,2]
[315582464,1709134242078,-500.0,0.00019178,2]
[315582465,1709134242087,-1071.07,0.00019178,2]
[315582466,1709134242096,-500.0,0.00019178,2]
[315582467,1709134242106,-373.72715939,0.00019178,2]
[315582468,1709134242115,-729.37,0.00019178,2]
[315582469,1709134242124,-237.52081382,0.00019178,2]
[315582470,1709134242133,-525.96,0.00019178,2]
[315582471,1709134242142,-500.0,0.00019178,2]
[315582472,1709134242153,-500.0,0.00019178,2]
[315582473,1709134242162,-543.54514631,0.00019178,2]
[315582474,1709134242172,-395.25635335,0.00019178,2]
[315582475,1709134242181,-500.0,0.00019178,2]
[315582476,1709134242190,-500.0,0.00019178,2]
[315582477,1709134242199,-1392.63,0.00019178,2]
[315582478,1709134242209,-500.0,0.00019178,2]
[315582479,1709134242218,-5733.34395828,0.00019178,2]
[315582531,1709134243655,-523.93604172,0.00019178,2]
[315582532,1709134243664,-500.0,0.00019178,2]
[315582533,1709134243674,-500.0,0.00019178,2]
[315582534,1709134243682,-871.64,0.00019178,2]
[315582535,1709134243691,-500.0,0.00019178,2]
[315582536,1709134243700,-627.09,0.00019178,2]
[315582537,1709134243709,-247.33395828,0.00019178,2]
[315582538,1709134243721,-252.66604172,0.00019178,2]
[315582539,1709134243731,-500.0,0.00019178,2]
[315582540,1709134243740,-124.80219988,0.00019178,2]
[315582543,1709134243751,-375.19780012,0.00019178,2]
[315582544,1709134243760,-500.0,0.00019178,2]
[315582545,1709134243769,-192.47953508,0.00019178,2]
[315582546,1709134243780,-2712.45046492,0.00019178,2]
[315582548,1709134243790,-500.0,0.00019178,2]
[315582550,1709134243800,-426.50033035,0.00019178,2]
[315582551,1709134243809,-500.0,0.00019178,2]
[315582552,1709134243819,-500.0,0.00019178,2]
[315582553,1709134243828,-500.0,0.00019178,2]
[315582554,1709134243838,-500.0,0.00019178,2]
[315582555,1709134243847,-461.04920473,0.00019178,2]
[315582556,1709134243858,-38.95079527,0.00019178,2]
[315582557,1709134243867,-269.78614597,0.00019178,2]
[315582558,1709134243876,-368.63383287,0.00019178,2]
[315582559,1709134243887,-253.09616713,0.00019178,2]
[315582560,1709134243896,-15.14583274,0.00019178,2]
[315582561,1709134243910,-484.85416726,0.00019178,2]
[315582562,1709134243919,-708.61,0.00019178,2]
[315582563,1709134243928,-192.07485131,0.00019178,2]
[315582564,1709134243940,-310.31367706,0.00019178,2]
[315582565,1709134243949,-500.0,0.00019178,2]
[315582566,1709134243958,-285.48495124,0.00019178,2]
[315582606,1709134246512,-1036.15238508,0.00017899,3]
[315582607,1709134246522,-290.02402273,0.00018896,2]
[315582608,1709134246534,-703.08553243,0.00018896,2]
[315582609,1709134246545,-214.51504876,0.00019178,2]
[315582610,1709134246557,-464.43362332,0.00019178,2]
[315582611,1709134246568,-7753.89,0.00019178,2]
[315582612,1709134246579,-382.1661985,0.00019178,2]
[315582613,1709134246591,-500.0,0.00019178,2]
[315582614,1709134246603,-284.39220468,0.00019178,2]
[315582615,1709134246615,-1468.01,0.00019178,2]
[315582616,1709134246626,-500.0,0.00019178,2]
[315582617,1709134246638,-650.44,0.00019178,2]
[315582619,1709134246651,-500.0,0.00019178,2]
[315582620,1709134246661,-1114.9,0.00019178,2]
[315582621,1709134246671,-302.93813241,0.00019178,2]
[315582623,1709134246682,-500.0,0.00019178,2]
[315582624,1709134246694,-500.0,0.00019178,2]
[315582625,1709134246706,-500.0,0.00019178,2]
[315582626,1709134246717,-500.0,0.00019178,2]
[315582628,1709134246728,-1105.1,0.00019178,2]
[315582631,1709134246738,-500.0,0.00019178,2]
[315582633,1709134246750,-500.0,0.00019178,2]
[315582635,1709134246761,-500.0,0.00019178,2]
[315582637,1709134246773,-500.0,0.00019178,2]
[315582639,1709134246784,-686.46,0.00019178,2]
[315582642,1709134246796,-880.97,0.00019178,2]
[315582644,1709134246808,-500.0,0.00019178,2]
[315582646,1709134246819,-500.0,0.00019178,2]
[315582648,1709134246828,-500.0,0.00019178,2]
[315582650,1709134246838,-500.0,0.00019178,2]
[315582652,1709134246848,-500.0,0.00019178,2]
[315582653,1709134246860,-500.0,0.00019178,2]
[315582654,1709134246873,-217.19381743,0.00019178,2]
[315582655,1709134246884,-500.0,0.00019178,2]
[315582656,1709134246895,-501.08668541,0.00019178,2]
[315582657,1709134246909,-500.0,0.00019178,2]
[315582658,1709134246922,-500.0,0.00019178,2]
[315582659,1709134246933,-500.0,0.00019178,2]
[315582660,1709134246944,-500.0,0.00019178,2]
[315582661,1709134246955,-500.0,0.00019178,2]
[315582662,1709134246966,-500.0,0.00019178,2]
[315582663,1709134246979,-500.0,0.00019178,2]
[315582664,1709134246991,-970.47,0.00019178,2]
[315582665,1709134247001,-500.0,0.00019178,2]
[315582666,1709134247013,-1169.94,0.00019178,2]
[315582667,1709134247047,-500.0,0.00019178,2]
[315582668,1709134247059,-500.0,0.00019178,2]
[315582669,1709134247070,-500.0,0.00019178,2]
[315582670,1709134247082,-3722.63,0.00019178,2]
[315582671,1709134247093,-164.874523,0.00019178,2]
[315582672,1709134247105,-166.666666,0.00019178,2]
[315582673,1709134247116,-162.850056,0.00019178,2]
[315582674,1709134247127,-620.00000584,0.00019207,2]
[315582675,1709134247139,-496.19211508,0.00019452,2]
[315582676,1709134247150,-500.0,0.00019452,2]
[315582677,1709134247162,-500.0,0.00019452,2]
[315582678,1709134247172,-541.45,0.00019452,2]
[315582679,1709134247183,-567.92043662,0.00019452,2]
[315582680,1709134247192,-513.70823308,0.00019452,2]
[315582681,1709134247202,-500.0,0.00019452,2]
[315582682,1709134247213,-500.0,0.00019452,2]
[315582683,1709134247224,-1071.07,0.00019452,2]
[315582684,1709134247235,-500.0,0.00019452,2]
[315582685,1709134247246,-729.37,0.00019452,2]
[315582686,1709134247257,-525.96,0.00019452,2]
[315582687,1709134247269,-500.0,0.00019452,2]
[315582688,1709134247280,-500.0,0.00019452,2]
[315582689,1709134247291,-1392.63,0.00019452,2]
[315582690,1709134247302,-6257.28,0.00019452,2]
[315582691,1709134247313,-388.72216087,0.00019452,2]
[315582693,1709134726464,194.467306,0.00016848,2]
[315582694,1709134757103,1036.15238508,0.00017353,3]
[315582695,1709134798937,-155.15981461,0.00017349,2]
[315582696,1709134798959,-527.76651352,0.00017349,2]
[315582697,1709134798979,-155.69178995,0.0001735,2]
[315582698,1709134799000,-15232.41076204,0.0001735,2]
[315582699,1709134799021,-2111.64420487,0.00017351,2]
[315582700,1709134799043,-1863.17330942,0.00017351,2]
[315582701,1709134799064,-557.45474321,0.00017351,2]
[315582702,1709134799085,-538.27532223,0.00017351,2]
[315582703,1709134799106,-2573.68962548,0.00017352,2]
[315582704,1709134799127,-400.75162755,0.00017352,2]
[315582705,1709134799147,-2457.81887025,0.00017352,2]
[315582706,1709134799170,-703.08553243,0.00017353,2]
[315582707,1709134799191,-719.31845796,0.00017353,2]
[315582708,1709134799214,-2279.5937064,0.00017354,2]
[315582709,1709134799236,-179.53546718,0.00017834,2]
[315582710,1709134799257,-8007.23444251,0.00017835,2]
[315582711,1709134799278,-2467.2746875,0.00017872,2]
[315582712,1709134799301,-1571.78703401,0.00017921,2]
[315582713,1709134799323,-5444.5321749,0.00018899,2]
[315582714,1709134799347,-892.87968971,0.000189,2]
[315582715,1709134799369,-155.15981461,0.00019,2]
[315582716,1709134799390,-2008.62734001,0.00019172,2]
[315582717,1709134799414,-500.0,0.00019178,2]
[315582718,1709134799438,-500.0,0.00019178,2]
[315582719,1709134799460,-500.23352583,0.00019178,2]
[315582720,1709134799481,-602.36743357,0.00019178,2]
[315582721,1709134799503,-507.460159,0.00019178,2]
[315582722,1709134799524,-500.0,0.00019178,2]
[315582723,1709134799546,-500.0,0.00019178,2]
[315582724,1709134799571,-500.0,0.00019178,2]
[315582725,1709134799603,-470.23773773,0.00019178,2]
[315582726,1709134799626,-500.0,0.00019178,2]
[315582727,1709134799648,-495.97996346,0.00019178,2]
[315582728,1709134799669,-500.0,0.00019178,2]
[315582729,1709134799691,-500.0,0.00019178,2]
[315582730,1709134799712,-500.0,0.00019178,2]
[315582731,1709134799733,-500.0,0.00019178,2]
[315582732,1709134799755,-255.55957885,0.00019178,2]
[315582733,1709134799777,-500.0,0.00019178,2]
[315582734,1709134799798,-500.0,0.00019178,2]
[315582735,1709134799818,-500.0,0.00019178,2]
[315582736,1709134799838,-500.0,0.00019178,2]
[315582737,1709134799858,-500.0,0.00019178,2]
[315582738,1709134799879,-500.0,0.00019178,2]
[315582739,1709134799901,-1081.04,0.00019178,2]
[315582740,1709134799922,-500.0,0.00019178,2]
[315582741,1709134799943,-500.0,0.00019178,2]
[315582742,1709134799963,-500.0,0.00019178,2]
[315582743,1709134799984,-500.0,0.00019178,2]
[315582744,1709134800004,-500.0,0.00019178,2]
[315582745,1709134800023,-500.0,0.00019178,2]
[315582746,1709134800043,-298.46954899,0.00019178,2]
[315582747,1709134800063,-500.0,0.00019178,2]
[315582748,1709134800084,-500.22931744,0.00019178,2]
[315582749,1709134800105,-500.0,0.00019178,2]
[315582750,1709134800125,-728.76,0.00019178,2]
[315582751,1709134800145,-500.0,0.00019178,2]
[315582752,1709134800167,-500.0,0.00019178,2]
[315582753,1709134800187,-190.12652069,0.00019178,2]
[315582754,1709134800208,-500.0,0.00019178,2]
[315582755,1709134800231,-3567.52,0.00019178,2]
[315582756,1709134800252,-500.0,0.00019178,2]
[315582757,1709134800272,-500.0,0.00019178,2]
[315582758,1709134800293,-500.0,0.00019178,2]
[315582759,1709134800315,-1434.15,0.00019178,2]
[315582760,1709134800335,-502.15505867,0.00019178,2]
[315582761,1709134800355,-500.0,0.00019178,2]
[315582762,1709134800375,-500.0,0.00019178,2]
[315582763,1709134800398,-500.0,0.00019178,2]
[315582764,1709134800420,-500.0,0.00019178,2]
[315582765,1709134800440,-500.0,0.00019178,2]
[315582766,1709134800461,-500.0,0.00019178,2]
[315582767,1709134800481,-500.17553005,0.00019178,2]
[315582768,1709134800502,-500.95648843,0.00019178,2]
[315582769,1709134800524,-6409.6,0.00019178,2]
[315582770,1709134800547,-500.0,0.00019178,2]
[315582771,1709134800570,-7430.81,0.00019178,2]
[315582772,1709134800595,-500.0,0.00019178,2]
[315582773,1709134800618,-500.0,0.00019178,2]
[315582774,1709134800640,-500.0,0.00019178,2]
[315582775,1709134800664,-500.0,0.00019178,2]
[315582776,1709134800686,-500.0,0.00019178,2]
[315582777,1709134800708,-500.0,0.00019178,2]
[315582778,1709134800728,-548.32424003,0.00019178,2]
[315582779,1709134800749,-500.0,0.00019178,2]
[315582780,1709134800772,-819.12,0.00019178,2]
[315582781,1709134800793,-500.0,0.00019178,2]
[315582782,1709134800815,-500.0,0.00019178,2]
[315582783,1709134800836,-500.0,0.00019178,2]
[315582784,1709134800858,-501.01152787,0.00019178,2]
[315582785,1709134800880,-500.0,0.00019178,2]
[315582786,1709134800902,-500.0,0.00019178,2]
[315582787,1709134801032,-500.0,0.00019178,2]
[315582788,1709134801052,-503.86862046,0.00019178,2]
[315582789,1709134801073,-500.0,0.00019178,2]
[315582790,1709134801094,-470.52,0.00019178,2]
[315582791,1709134801115,-500.0,0.00019178,2]
[315582792,1709134801137,-3066.0,0.00019178,2]
[315582793,1709134801163,-500.0,0.00019178,2]
[315582794,1709134801186,-500.0,0.00019178,2]
[315582795,1709134801206,-500.0,0.00019178,2]
[315582796,1709134801228,-500.0,0.00019178,2]
[315582797,1709134801249,-500.0,0.00019178,2]
[315582798,1709134801270,-623.34,0.00019178,2]
[315582799,1709134801290,-500.0,0.00019178,2]
[315582800,1709134801311,-595.82,0.00019178,2]
[315582801,1709134801334,-500.0,0.00019178,2]
[315582802,1709134801354,-510.03816746,0.00019178,2]
[315582803,1709134801375,-500.0,0.00019178,2]
[315582804,1709134801396,-500.0,0.00019178,2]
[315582805,1709134801420,-500.0,0.00019178,2]
[315582806,1709134801441,-500.0,0.00019178,2]
[315582807,1709134801463,-151.0,0.00019178,2]
[315582808,1709134801484,-500.0,0.00019178,2]
[315582809,1709134801505,-500.0,0.00019178,2]
[315582810,1709134801528,-1406.84,0.00019178,2]
[315582811,1709134801548,-500.0,0.00019178,2]
[315582812,1709134801571,-679.09,0.00019178,2]
[315582813,1709134801598,-745.74,0.00019178,2]
[315582814,1709134801623,-1068.45,0.00019178,2]
[315582815,1709134801644,-500.0,0.00019178,2]
[315582816,1709134801667,-500.0,0.00019178,2]
[315582817,1709134801691,-500.0,0.00019178,2]
[315582818,1709134801712,-500.0,0.00019178,2]
[315582819,1709134801735,-500.0,0.00019178,2]
[315582820,1709134801755,-500.0,0.00019178,2]
[315582821,1709134801778,-500.6742577,0.00019178,2]
[315582822,1709134801803,-645.75,0.00019178,2]
[315582823,1709134801823,-500.0,0.00019178,2]
[315582824,1709134801844,-500.0,0.00019178,2]
[315582825,1709134801866,-1059.05,0.00019178,2]
[315582826,1709134801887,-500.0,0.00019178,2]
[315582827,1709134801912,-1007.15,0.00019178,2]
[315582828,1709134801932,-588.49,0.00019178,2]
[315582829,1709134801953,-844.27,0.00019178,2]
[315582830,1709134801974,-500.0,0.00019178,2]
[315582831,1709134801994,-500.0,0.00019178,2]
[315582832,1709134802016,-617.7,0.00019178,2]
[315582833,1709134802041,-657.86,0.00019178,2]
[315582834,1709134802063,-500.0,0.00019178,2]
[315582835,1709134802085,-500.0,0.00019178,2]
[315582836,1709134802105,-166.666666,0.00019178,2]
[315582837,1709134802126,-151.70174466,0.00019355,2]
[315582838,1709134802147,-1213.43171838,0.00019355,2]
[315582839,1709134802171,-500.0,0.00019452,2]
[315582840,1709134802192,-500.0,0.00019452,2]
[315582841,1709134802213,-500.0,0.00019452,2]
[315582842,1709134802234,-500.0,0.00019452,2]
[315582843,1709134802255,-500.0,0.00019452,2]
[315582844,1709134802277,-500.0,0.00019452,2]
[315582845,1709134802298,-500.0,0.00019452,2]
[315582846,1709134802321,-1169.94,0.00019452,2]
[315582847,1709134802343,-500.0,0.00019452,2]
[315582848,1709134802365,-500.0,0.00019452,2]
[315582849,1709134802388,-500.0,0.00019452,2]
[315582850,1709134802411,-501.19388928,0.00019452,2]
[315582851,1709134802434,-500.0,0.00019452,2]
[315582852,1709134802456,-500.0,0.00019452,2]
[315582853,1709134802478,-500.0,0.00019452,2]
[315582854,1709134802501,-1081.04,0.00019452,2]
[315582855,1709134802522,-252.29,0.00019452,2]
[315582856,1709134802544,-500.0,0.00019452,2]
[315582857,1709134802566,-500.0,0.00019452,2]
[315582858,1709134802590,-728.76,0.00019452,2]
[315582859,1709134802611,-500.0,0.00019452,2]
[315582860,1709134802634,-501.72881824,0.00019452,2]
[315582861,1709134802657,-3567.52,0.00019452,2]
[315582862,1709134802678,-500.0,0.00019452,2]
[315582863,1709134802701,-500.0,0.00019452,2]
[315582864,1709134802722,-1434.15,0.00019452,2]
[315582865,1709134802744,-178.58,0.00019452,2]
[315582866,1709134802766,-6409.6,0.00019452,2]
[315582867,1709134802788,-500.0,0.00019452,2]
[315582868,1709134802810,-7430.81,0.00019452,2]
[315582869,1709134802831,-500.0,0.00019452,2]
[315582870,1709134802852,-500.0,0.00019452,2]
[315582871,1709134802873,-819.12,0.00019452,2]
[315582872,1709134802895,-500.0,0.00019452,2]
[315582873,1709134802919,-500.86552404,0.00019452,2]
[315582874,1709134802942,-500.0,0.00019452,2]
[315582875,1709134802964,-500.0,0.00019452,2]
[315582876,1709134802991,-3066.0,0.00019452,2]
[315582877,1709134803013,-500.0,0.00019452,2]
[315582878,1709134803037,-500.0,0.00019452,2]
[315582879,1709134803059,-500.0,0.00019452,2]
[315582880,1709134803081,-623.34,0.00019452,2]
[315582881,1709134803103,-595.82,0.00019452,2]
[315582882,1709134803125,-215.56498591,0.00019452,2]
[315582883,1709134803147,-500.0,0.00019452,2]
[315582884,1709134803172,-500.0,0.00019452,2]
[315582885,1709134803192,-500.0,0.00019452,2]
[315582886,1709134803213,-151.0,0.00019452,2]
[315582887,1709134803235,-500.0,0.00019452,2]
[315582888,1709134803255,-500.0,0.00019452,2]
[315582889,1709134803278,-1406.84,0.00019452,2]
[315582890,1709134803299,-679.09,0.00019452,2]
[315582891,1709134803320,-745.74,0.00019452,2]
[315582892,1709134803343,-1068.45,0.00019452,2]
[315582893,1709134803364,-500.0,0.00019452,2]
[315582894,1709134803385,-500.0,0.00019452,2]
[315582895,1709134803408,-500.0,0.00019452,2]
[315582896,1709134803429,-500.0,0.00019452,2]
[315582897,1709134803454,-1059.05,0.00019452,2]
[315582898,1709134803475,-500.0,0.00019452,2]
[315582899,1709134803498,-1007.15,0.00019452,2]
[315582900,1709134803521,-588.49,0.00019452,2]
[315582901,1709134803545,-844.27,0.00019452,2]
[315582902,1709134803567,-500.0,0.00019452,2]
[315582903,1709134803591,-617.7,0.00019452,2]
[315582904,1709134803615,-657.86,0.00019452,2]
[315582905,1709134803640,-457.66523061,0.00019452,2]
[315582906,1709134803663,-1990.99720189,0.00019625,2]
[315582907,1709134803686,-166.666666,0.00019627,2]
[315582908,1709134803709,-151.0,0.00019726,2]
[315582909,1709134803731,-500.0,0.00019726,2]
[315582910,1709134803754,-500.0,0.00019726,2]
[315582911,1709134803777,-500.0,0.00019726,2]
[315582912,1709134803799,-1169.94,0.00019726,2]
[315582913,1709134803820,-500.0,0.00019726,2]
[315582914,1709134803840,-500.0,0.00019726,2]
[315582915,1709134803861,-500.0,0.00019726,2]
[315582916,1709134803881,-1081.04,0.00019726,2]
[315582917,1709134803905,-500.0,0.00019726,2]
[315582918,1709134803927,-728.76,0.00019726,2]
[315582919,1709134803948,-3567.52,0.00019726,2]
[315582920,1709134803974,-1434.15,0.00019726,2]
[315582921,1709134803995,-6409.6,0.00019726,2]
[315582922,1709134804113,-500.0,0.00019726,2]
[315582923,1709134804136,-7430.81,0.00019726,2]
[315582924,1709134804161,-819.12,0.00019726,2]
[315582925,1709134804182,-500.0,0.00019726,2]
[315582926,1709134804204,-3066.0,0.00019726,2]
[315582927,1709134804226,-500.0,0.00019726,2]
[315582928,1709134804247,-623.34,0.00019726,2]
[315582929,1709134804268,-595.82,0.00019726,2]
[315582930,1709134804291,-500.0,0.00019726,2]
[315582931,1709134804313,-1406.84,0.00019726,2]
[315582932,1709134804334,-679.09,0.00019726,2]
[315582933,1709134804355,-745.74,0.00019726,2]
[315582934,1709134804376,-1068.45,0.00019726,2]
[315582935,1709134804397,-500.0,0.00019726,2]
[315582936,1709134804422,-1059.05,0.00019726,2]
[315582937,1709134804446,-1007.15,0.00019726,2]
[315582938,1709134804467,-588.49,0.00019726,2]
[315582939,1709134804490,-844.27,0.00019726,2]
[315582940,1709134804512,-421.1,0.00019726,2]
[315582941,1709134804533,-617.7,0.00019726,2]
[315582942,1709134804555,-657.86,0.00019726,2]
[315582943,1709134804577,-12267.26494841,0.00019999,2]
[315582945,1709135210134,7378.0,0.00016952,2]
[315583016,1709135307440,151.14812516,0.00019598,30]
[315583043,1709135403094,5000.0,0.000192,6]
[315583044,1709135411772,3158.43631191,0.000192,6]
[315583045,1709135417367,983.5022252,0.00016591,2]
[315583119,1709135435226,-1719.28582597,0.00017199,2]
[315583120,1709135435236,-557.45474321,0.00017199,2]
[315583121,1709135435246,-4700.60014085,0.000172,2]
[315583122,1709135435256,-703.08553243,0.00017201,2]
[315583123,1709135435266,-392.59847387,0.00017201,2]
[315583124,1709135435276,-719.31845796,0.00017201,2]
[315583125,1709135435286,-538.27532223,0.00017201,2]
[315583126,1709135435296,-15232.41076204,0.00017201,2]
[315583127,1709135435305,-312.33143877,0.00017202,2]
[315583128,1709135435316,-527.76651352,0.00017202,2]
[315583129,1709135435326,-2111.64420487,0.00017202,2]
[315583130,1709135435336,-744.34995698,0.00017203,2]
[315583131,1709135435346,-400.75162755,0.00017203,2]
[315583132,1709135435356,-8007.23444251,0.00017203,2]
[315583133,1709135435366,-290.02402273,0.00017204,2]
[315583134,1709135435376,-1863.17330942,0.00017204,2]
[315583135,1709135435386,-2457.81887025,0.00017204,2]
[315583136,1709135435395,-392.59847387,0.00017207,2]
[315583137,1709135435404,-173.46476785,0.00017231,2]
[315583138,1709135435415,-258.305103,0.00017528,2]
[315583139,1709135435424,-5444.5321749,0.00018,2]
[315583140,1709135435434,-595.25312647,0.000189,2]
[315583142,1709135435443,-654.86573643,0.00019159,2]
[315583143,1709135435454,-501.12566577,0.00019178,2]
[315583145,1709135435463,-399.164177,0.00019178,2]
[315583147,1709135435473,-1005.8616059,0.00019178,2]
[315583149,1709135435482,-500.0,0.00019178,2]
[315583151,1709135435492,-500.0,0.00019178,2]
[315583153,1709135435502,-500.0,0.00019178,2]
[315583155,1709135435512,-500.0,0.00019178,2]
[315583157,1709135435522,-500.0,0.00019178,2]
[315583159,1709135435531,-500.0,0.00019178,2]
[315583162,1709135435541,-500.0,0.00019178,2]
[315583164,1709135435551,-500.0,0.00019178,2]
[315583165,1709135435560,-500.0,0.00019178,2]
[315583168,1709135435570,-500.0,0.00019178,2]
[315583170,1709135435580,-511.41656817,0.00019178,2]
[315583171,1709135435589,-500.00000043,0.00019178,2]
[315583173,1709135435599,-503.20204968,0.00019178,2]
[315583176,1709135435609,-500.0,0.00019178,2]
[315583179,1709135435631,-562.37040375,0.00019178,2]
[315583181,1709135435641,-500.0,0.00019178,2]
[315583183,1709135435652,-510.87943014,0.00019178,2]
[315583185,1709135435662,-500.0,0.00019178,2]
[315583187,1709135435672,-500.0,0.00019178,2]
[315583189,1709135435682,-500.0,0.00019178,2]
[315583191,1709135435692,-500.0,0.00019178,2]
[315583193,1709135435704,-500.0,0.00019178,2]
[315583195,1709135435715,-500.0,0.00019178,2]
[315583197,1709135435725,-500.0,0.00019178,2]
[315583199,1709135435736,-501.93907582,0.00019178,2]
[315583201,1709135435746,-500.0,0.00019178,2]
[315583203,1709135435755,-500.0,0.00019178,2]
[315583205,1709135435765,-500.0,0.00019178,2]
[315583207,1709135435775,-514.94015207,0.00019178,2]
[315583209,1709135435786,-500.8056287,0.00019178,2]
[315583211,1709135435796,-501.56333098,0.00019178,2]
[315583213,1709135435808,-566.42558314,0.00019178,2]
[315583215,1709135435824,-261.028789,0.00019178,2]
[315583217,1709135435834,-414.87738382,0.00019178,2]
[315583218,1709135435844,-565.59423463,0.00019178,2]
[315583219,1709135435854,-945.91,0.00019178,2]
[315583221,1709135435863,-500.0,0.00019178,2]
[315583223,1709135435873,-500.0,0.00019178,2]
[315583224,1709135435884,-637.67,0.00019178,2]
[315583225,1709135435893,-500.0,0.00019178,2]
[315583226,1709135435903,-738.73,0.00019178,2]
[315583227,1709135435913,-575.63,0.00019178,2]
[315583228,1709135435923,-1230.99,0.00019178,2]
[315583229,1709135435933,-934.89,0.00019178,2]
[315583230,1709135435943,-881.26,0.00019178,2]
[315583231,1709135435954,-241.83685928,0.00019178,2]
[315583232,1709135435964,-926.67,0.00019178,2]
[315583233,1709135435979,-5265.37653254,0.00019178,2]
[315583234,1709135435995,-343.02346746,0.00019178,2]
[315583235,1709135436005,-500.0,0.00019178,2]
[315583237,1709135436015,-500.0,0.00019178,2]
[315583238,1709135436025,-85.710239,0.00019178,2]
[315583239,1709135436039,-414.289761,0.00019178,2]
[315583240,1709135436048,-500.0,0.00019178,2]
[315583241,1709135436058,-5166.510239,0.00019178,2]
[315583309,1709135439001,-1219.16,0.00019178,2]
[315583501,1709135441767,-116.289761,0.00019178,2]
[315583502,1709135441776,-264.07203286,0.00019178,2]
[315583504,1709135441786,-3121.58,0.00019178,2]
[315583505,1709135441795,-500.0,0.00019178,2]
[315583506,1709135441810,-500.0,0.00019178,2]
[315583522,1709135441991,-500.0,0.00019178,2]
[315583525,1709135442006,-1254.88,0.00019178,2]
[315583527,1709135442016,-2682.75,0.00019178,2]
[315583529,1709135442025,-500.48590517,0.00019178,2]
[315583531,1709135442034,-300.17,0.00019178,2]
[315583533,1709135442043,-521.35,0.00019178,2]
[315583535,1709135442052,-594.2,0.00019178,2]
[315583537,1709135442062,-626.48,0.00019178,2]
[315583539,1709135442071,-716.73,0.00019178,2]
[315583541,1709135442080,-895.94,0.00019178,2]
[315583543,1709135442089,-164.874523,0.00019178,2]
[315583545,1709135442098,-166.666666,0.00019178,2]
[315583547,1709135442107,-383.97422438,0.00019305,2]
[315583549,1709135442116,-30322.74022583,0.00019352,2]
[315583551,1709135442125,-200.6348293,0.000194,2]
[315583553,1709135442134,-500.0,0.00019452,2]
[315583555,1709135442144,-500.0,0.00019452,2]
[315583557,1709135442153,-500.0,0.00019452,2]
[315583559,1709135442162,-618.23,0.00019452,2]
[315583561,1709135442171,-500.0,0.00019452,2]
[315583563,1709135442181,-576.22818176,0.00019452,2]
[315583565,1709135442191,-500.0,0.00019452,2]
[315583567,1709135442200,-500.0,0.00019452,2]
[315583569,1709135442211,-500.0,0.00019452,2]
[315583571,1709135442221,-500.0,0.00019452,2]
[315583573,1709135442231,-310.0,0.00019452,2]
[315583575,1709135442240,-500.0,0.00019452,2]
[315583577,1709135442250,-500.0,0.00019452,2]
[315583579,1709135442259,-190.26450315,0.00019452,2]
[315583581,1709135442269,-945.91,0.00019452,2]
[315583583,1709135442279,-500.0,0.00019452,2]
[315583585,1709135442288,-637.67,0.00019452,2]
[315583587,1709135442297,-738.73,0.00019452,2]